[Event "Turkish Cup 2024"]
[Site "Denizli"]
[Date "2024.07.31"]
[Round "3"]
[White "Cevizci, Yusuf Baran"]
[Black "Tutmaz, Bugra Hamza"]
[Result "1/2-1/2"]
[ECO "B11"]
[WhiteElo "2102"]
[BlackElo "1761"]
[Annotator "RC"]
[PlyCount "138"]
[EventDate "2024.08.01"]
[EventType "swiss"]
[EventCountry "TUR"]
[SourceTitle "playchess.com"]
[Source "ChessBase"]
[SourceQuality "1"]
[TimeControl "5400+30"]

1. e4 {[%emt 0:06:00]} c6 {[%emt 0:01:00]} 2. Nf3 {[%emt 0:00:30]} d5 {[%emt 0:00:30]} 3. Nc3 {[%emt 0:00:00]} Bg4 {[%emt 0:00:00]} 4. h3 {[%emt 0:00:00]} Bxf3 {[%emt 0:00:00]} 5. Qxf3 {[%emt 0:00:00]} e6 {[%emt 0:00:00]} 6. g3 {[%emt 0:00:00]} Nf6 {[%emt 0:00:00]} 7. d3 {[%emt 0:00:30]} Be7 {[%emt 0:00:30]} 8. Bg2 {[%emt 0:00:30]} Nbd7 {[%emt 0:01:30]} 9. O-O {[%emt 0:02:30]} O-O {[%emt 0:00:30]} 10. Qe2 {[%emt 0:00:30]} dxe4 {[%emt 0:05:30]} 11. dxe4 {[%emt 0:00:30]} e5 {[%emt 0:01:30]} 12. f4 {[%emt 0:03:30]} Qc7 {[%emt 0:00:30]} 13. f5 {[%emt 0:00:30]} Ne8 {[%emt 0:00:30]} 14. g4 {[%emt 0:00:30]} f6 {[%emt 0:01:30]} 15. h4 {[%emt 0:00:30]} h6 {[%emt 0:01:30]} 16. Bf3 {[%emt 0:00:30]} Nd6 {[%emt 0:00:30]} 17. Kg2 {[%emt 0:00:30]} Nf7 {[%emt 0:00:30]} 18. a4 {[%emt 0:03:30]} Rfd8 {[%emt 0:02:30]} 19. Be3 {[%emt 0:01:30]} Nf8 {[%emt 0:02:30]} 20. Qf2 {[%emt 0:01:30]} b6 {[%emt 0:02:30]} 21. Be2 {[%emt 0:04:30]} Nh7 {[%emt 0:03:30]} 22. Bc4 {[%emt 0:00:30]} Kf8 {[%emt 0:06:30]} 23. Qf3 {[%emt 0:02:30]} Bc5 {[%emt 0:05:30]} 24. Bc1 {[%emt 0:09:30]} Rd6 {[%emt 0:04:30]} 25. Nd1 {[%emt 0:04:30]} Qe7 {[%emt 0:15:30]} 26. Nf2 {[%emt 0:01:30]} Nd8 {[%emt 0:07:30]} 27. Ba2 {[%emt 0:02:30]} Bxf2 {[%emt 0:07:30]} 28. Rxf2 {[%emt 0:01:30]} Nb7 {[%emt 0:00:30]} 29. Be3 {[%emt 0:01:30]} Rad8 {[%emt 0:00:30]} 30. Rh1 {[%emt 0:02:30]} Nc5 {[%emt 0:04:30]} 31. a5 {[%emt 0:01:30]} Nd7 {[%emt 0:09:13]} 32. g5 {[%emt 0:03:30]} fxg5 {[%emt 0:02:29]} 33. hxg5 {[%emt 0:00:30]} Nxg5 {[%emt 0:01:41]} 34. f6 {[%emt 0:00:30]} gxf6 {[%emt 0:00:46]} 35. Bxg5 {[%emt 0:00:30]} Qg7 {[%emt 0:00:00]} 36. Rh5 {[%emt 0:01:30]} Ke7 {[%emt 0:00:09]} 37. axb6 {[%emt 0:29:49]} axb6 {[%emt 0:00:27]} 38. Qg4 {[%emt 0:08:10]} hxg5 {[%emt 0:01:24]} 39. Kg3 {[%emt 0:00:50]} Rh8 {[%emt 0:06:39]} 40. Rxh8 {[%emt 0:00:09]} Qxh8 {[%emt 0:00:14]} 41. Rh2 {[%emt 0:00:30]} Qg7 {[%emt 0:00:00]} 42. Qf5 {[%emt 0:00:03]} Nf8 {[%emt 0:02:35]} 43. Qc8 {[%emt 0:00:15]} b5 {[%emt 0:00:55]} 44. Bb3 {[%emt 0:01:46]} g4 {[%emt 0:03:46]} 45. Qxg4 {[%emt 0:06:02]} Qxg4+ {[%emt 0:00:04]} 46. Kxg4 {[%emt 0:00:00]} Rd1 {[%emt 0:00:21]} 47. Kf3 {[%emt 0:00:24]} Rf1+ {[%emt 0:00:22]} 48. Ke3 {[%emt 0:00:15]} Rg1 {[%emt 0:01:55]} 49. c3 {[%emt 0:00:45]} c5 {[%emt 0:00:26]} 50. Bd5 {[%emt 0:00:38]} Rg3+ {[%emt 0:00:17]} 51. Kf2 {[%emt 0:00:00]} Rd3 {[%emt 0:01:47]} 52. Ke2 {[%emt 0:00:00]} Rg3 {[%emt 0:00:00]} 53. Kf2 {[%emt 0:00:21]} Rg7 {[%emt 0:00:01]} 54. Rh1 {[%emt 0:00:00]} Rh7 {[%emt 0:01:18]} 55. Ra1 {[%emt 0:00:14]} Rh2+ {[%emt 0:00:49]} 56. Ke3 {[%emt 0:00:04]} Ng6 {[%emt 0:00:05]} 57. Ra7+ {[%emt 0:00:13]} Kd8 {[%emt 0:00:30]} 58. b4 {[%emt 0:00:50]} cxb4 {[%emt 0:00:30]} 59. cxb4 {[%emt 0:00:02]} Rb2 {[%emt 0:01:34]} 60. Ra8+ {[%emt 0:00:12]} Kc7 {[%emt 0:00:01]} 61. Ra7+ {[%emt 0:00:03]} Kd8 {[%emt 0:00:50]} 62. Ra8+ {[%emt 0:00:05]} Kc7 {[%emt 0:00:18]} 63. Ra7+ {[%emt 0:00:30]} Kc8 {[%emt 0:00:00]} 64. Ra8+ {[%emt 0:00:00]} Kd7 {[%emt 0:00:13]} 65. Ra7+ {[%emt 0:00:00]} Kc8 {[%emt 0:00:37]} 66. Ra8+ {[%emt 0:00:00]} Kd7 {[%emt 0:01:15]} 67. Ra7+ {[%emt 0:00:03]} Kd8 {[%emt 0:00:18]} 68. Ra8+ {[%emt 0:00:06]} Kd7 {[%emt 0:00:38]} 69. Ra7+ {[%emt 0:00:04]} Kd8 {[%emt 0:00:06]} 1/2-1/2

[Event "Turkish Cup 2024"]
[Site "Denizli"]
[Date "2024.07.31"]
[Round "3"]
[White "Kavri, Yusuf Eren"]
[Black "Tufan, Kerem"]
[Result "1-0"]
[ECO "A33"]
[WhiteElo "2090"]
[BlackElo "1783"]
[Annotator "ChessBase"]
[PlyCount "61"]
[EventDate "2024.08.01"]
[EventType "swiss"]
[EventCountry "TUR"]
[SourceTitle "playchess.com"]
[Source "ChessBase"]
[SourceQuality "1"]
[TimeControl "5400+30"]

1. c4 {[%emt 0:01:00]} Nf6 {[%emt 0:01:00]} 2. Nc3 {[%emt 0:00:30]} c5 {[%emt 0:01:30]} 3. Nf3 {[%emt 0:00:30]} Nc6 {[%emt 0:01:30]} 4. d4 {[%emt 0:00:30]} cxd4 {[%emt 0:00:30]} 5. Nxd4 {[%emt 0:00:30]} e6 {[%emt 0:02:30]} 6. g3 {[%emt 0:03:30]} Be7 {[%emt 0:03:30]} 7. Bg2 {[%emt 0:00:30]} O-O {[%emt 0:00:30]} 8. O-O {[%emt 0:00:30]} a6 {[%emt 0:05:30]} 9. b3 {[%emt 0:01:30]} Qa5 {[%emt 0:10:30]} 10. Bb2 {[%emt 0:04:30]} Rb8 {[%emt 0:06:30]} 11. a3 {[%emt 0:05:30]} Qh5 {[%emt 0:09:30]} 12. e3 {[%emt 0:24:30]} Qxd1 {[%emt 0:22:30]} 13. Rfxd1 {[%emt 0:00:30]} Nxd4 {[%emt 0:01:30]} 14. exd4 {[%emt 0:02:30]} d6 {[%emt 0:03:30]} 15. b4 {[%emt 0:00:30]} b6 {[%emt 0:02:30]} 16. Rac1 {[%emt 0:02:30]} Bd7 {[%emt 0:16:28]} 17. Ba1 {[%emt 0:02:30]} Rfc8 {[%emt 0:03:32]} 18. Nb1 {[%emt 0:01:30]} Be8 {[%emt 0:04:12]} 19. Nd2 {[%emt 0:01:30]} Bf8 {[%emt 0:01:32]} 20. Re1 {[%emt 0:02:30]} Rd8 {[%emt 0:01:05]} 21. Nf1 {[%emt 0:03:30]} Rdc8 {[%emt 0:00:38]} 22. Ne3 {[%emt 0:00:30]} Rd8 {[%emt 0:00:30]} 23. f4 {[%emt 0:01:30]} Rdc8 {[%emt 0:00:29]} 24. f5 {[%emt 0:03:30]} exf5 {[%emt 0:00:31]} 25. Nxf5 {[%emt 0:00:30]} Bd7 {[%emt 0:00:24]} 26. Ne3 {[%emt 0:01:30]} Re8 {[%emt 0:00:28]} 27. Nd5 {[%emt 0:00:30]} Nxd5 {[%emt 0:00:29]} 28. Bxd5 {[%emt 0:00:30]} Rxe1+ {[%emt 0:00:29]} 29. Rxe1 {[%emt 0:00:30]} Rc8 {[%emt 0:00:30]} 30. Kf2 {[%emt 0:01:30]} Be6 {[%emt 0:00:36]} 31. Rxe6 {[%emt 0:00:30]} 1-0

[Event "Turkish Cup 2024"]
[Site "Denizli"]
[Date "2024.07.31"]
[Round "3"]
[White "Tutuncu, Ali"]
[Black "Gebes, Ata"]
[Result "1-0"]
[ECO "B25"]
[WhiteElo "2041"]
[BlackElo "1874"]
[Annotator "RC"]
[PlyCount "115"]
[EventDate "2024.08.01"]
[EventType "swiss"]
[EventCountry "TUR"]
[SourceTitle "playchess.com"]
[Source "ChessBase"]
[SourceQuality "1"]
[TimeControl "5400+30"]

1. e4 {[%emt 0:01:00]} c5 {[%emt 0:03:00]} 2. Nc3 {[%emt 0:01:30]} d6 {[%emt 0:00:30]} 3. g3 {[%emt 0:00:30]} g6 {[%emt 0:00:30]} 4. Bg2 {[%emt 0:00:30]} Bg7 {[%emt 0:00:30]} 5. d3 {[%emt 0:00:30]} Nc6 {[%emt 0:00:30]} 6. Be3 {[%emt 0:00:00]} e6 {[%emt 0:00:00]} 7. Qd2 {[%emt 0:00:00]} Rb8 {[%emt 0:00:00]} 8. f4 {[%emt 0:00:00]} Nge7 {[%emt 0:08:30]} 9. Nf3 {[%emt 0:00:00]} Nd4 {[%emt 0:08:30]} 10. O-O {[%emt 0:00:30]} b5 {[%emt 0:01:30]} 11. Qf2 {[%emt 0:00:30]} Qb6 {[%emt 0:03:30]} 12. Bxd4 {[%emt 0:07:30]} cxd4 {[%emt 0:01:30]} 13. Ne2 {[%emt 0:00:00]} Nc6 {[%emt 0:01:30]} 14. e5 {[%emt 0:00:00]} dxe5 {[%emt 0:13:30]} 15. fxe5 {[%emt 0:01:30]} O-O {[%emt 0:00:30]} 16. Nexd4 {[%emt 0:00:00]} Nxd4 {[%emt 0:01:30]} 17. Qxd4 {[%emt 0:01:00]} Qxd4+ {[%emt 0:02:30]} 18. Nxd4 {[%emt 0:00:00]} Bb7 {[%emt 0:00:30]} 19. Rfe1 {[%emt 0:01:00]} Rfd8 {[%emt 0:01:30]} 20. Nb3 {[%emt 0:02:30]} Bxg2 {[%emt 0:05:30]} 21. Kxg2 {[%emt 0:01:30]} Rbc8 {[%emt 0:01:30]} 22. Re2 {[%emt 0:00:30]} Bxe5 {[%emt 0:01:30]} 23. Rxe5 {[%emt 0:00:30]} Rxc2+ {[%emt 0:00:30]} 24. Kf1 {[%emt 0:02:30]} Rxh2 {[%emt 0:06:30]} 25. Re2 {[%emt 0:00:00]} Rh1+ {[%emt 0:00:00]} 26. Kf2 {[%emt 0:00:00]} Rxa1 {[%emt 0:00:00]} 27. Nxa1 {[%emt 0:00:30]} Rxd3 {[%emt 0:00:30]} 28. Nb3 {[%emt 0:00:00]} Kf8 {[%emt 0:18:30]} 29. Re5 {[%emt 0:01:00]} a6 {[%emt 0:00:30]} 30. Rc5 {[%emt 0:01:30]} Kg7 {[%emt 0:04:16]} 31. Rc2 {[%emt 0:01:30]} Rd6 {[%emt 0:02:55]} 32. Ke2 {[%emt 0:03:30]} h5 {[%emt 0:00:31]} 33. Na5 {[%emt 0:03:30]} Kf6 {[%emt 0:03:56]} 34. Rc6 {[%emt 0:01:30]} Ke5 {[%emt 0:01:13]} 35. Rc5+ {[%emt 0:08:30]} Kf6 {[%emt 0:04:05]} 36. Nc6 {[%emt 0:05:30]} g5 {[%emt 0:01:54]} 37. Ne5 {[%emt 0:01:30]} Rd5 {[%emt 0:00:49]} 38. Nd3 {[%emt 0:05:30]} a5 {[%emt 0:02:59]} 39. Ke3 {[%emt 0:01:30]} Rxc5 {[%emt 0:00:48]} 40. Nxc5 {[%emt 0:00:30]} Ke5 {[%emt 0:00:00]} 41. Nb3 {[%emt 0:00:30]} Kd5 {[%emt 0:01:04]} 42. Nxa5 {[%emt 0:00:30]} f5 {[%emt 0:00:24]} 43. Nb3 {[%emt 0:00:30]} e5 {[%emt 0:00:36]} 44. Nd2 {[%emt 0:00:00]} h4 {[%emt 0:00:53]} 45. gxh4 {[%emt 0:02:00]} gxh4 {[%emt 0:00:01]} 46. Nf3 {[%emt 0:02:30]} h3 {[%emt 0:00:30]} 47. Kf2 {[%emt 0:00:30]} f4 {[%emt 0:00:30]} 48. Ng5 {[%emt 0:00:00]} Kd4 {[%emt 0:00:16]} 49. Nxh3 {[%emt 0:00:00]} Kd3 {[%emt 0:00:21]} 50. Kf3 {[%emt 0:01:30]} Kc2 {[%emt 0:00:53]} 51. b3 {[%emt 0:00:30]} b4 {[%emt 0:00:00]} 52. Ke4 {[%emt 0:00:30]} Kb2 {[%emt 0:00:00]} 53. Kd3 {[%emt 0:00:30]} Kxa2 {[%emt 0:00:11]} 54. Kc4 {[%emt 0:00:00]} f3 {[%emt 0:00:31]} 55. Nf2 {[%emt 0:00:00]} Kb2 {[%emt 0:00:00]} 56. Kxb4 {[%emt 0:00:30]} Kc2 {[%emt 0:00:14]} 57. Kc4 {[%emt 0:00:30]} Kd2 {[%emt 0:00:00]} 58. Ng4 {[%emt 0:01:30]} 1-0

[Event "Turkish Cup 2024"]
[Site "Denizli"]
[Date "2024.07.31"]
[Round "3"]
[White "Turkmen, Ataberk"]
[Black "Bozdag, Armagan Emre"]
[Result "1-0"]
[ECO "C26"]
[WhiteElo "2022"]
[BlackElo "1794"]
[Annotator "RC"]
[PlyCount "75"]
[EventDate "2024.08.01"]
[EventType "swiss"]
[EventCountry "TUR"]
[SourceTitle "playchess.com"]
[Source "ChessBase"]
[SourceQuality "1"]
[TimeControl "5400+30"]

1. e4 {[%emt 0:01:00]} e5 {[%emt 0:05:00]} 2. Nc3 {[%emt 0:00:30]} Nf6 {[%emt 0:00:00]} 3. g3 {[%emt 0:00:00]} d5 {[%emt 0:00:00]} 4. exd5 {[%emt 0:00:00]} Nxd5 {[%emt 0:00:30]} 5. Bg2 {[%emt 0:00:30]} Nxc3 {[%emt 0:00:00]} 6. bxc3 {[%emt 0:00:00]} Bc5 {[%emt 0:00:00]} 7. Ne2 {[%emt 0:05:00]} Nc6 {[%emt 0:01:30]} 8. d3 {[%emt 0:01:30]} Be6 {[%emt 0:03:30]} 9. c4 {[%emt 0:03:30]} O-O {[%emt 0:08:30]} 10. O-O {[%emt 0:01:30]} Rb8 {[%emt 0:04:30]} 11. Rb1 {[%emt 0:01:30]} Qd7 {[%emt 0:04:30]} 12. Be3 {[%emt 0:01:30]} Be7 {[%emt 0:06:30]} 13. f4 {[%emt 0:07:30]} f6 {[%emt 0:05:30]} 14. fxe5 {[%emt 0:06:30]} fxe5 {[%emt 0:01:30]} 15. Rxf8+ {[%emt 0:00:30]} Bxf8 {[%emt 0:00:30]} 16. Qd2 {[%emt 0:02:30]} b6 {[%emt 0:02:30]} 17. Qc3 {[%emt 0:25:30]} Re8 {[%emt 0:00:30]} 18. Rf1 {[%emt 0:16:30]} g6 {[%emt 0:10:30]} 19. Qd2 {[%emt 0:03:30]} Bg7 {[%emt 0:06:30]} 20. Nc3 {[%emt 0:00:30]} Ne7 {[%emt 0:04:30]} 21. Ne4 {[%emt 0:03:15]} Nf5 {[%emt 0:03:30]} 22. Bf2 {[%emt 0:00:28]} Rf8 {[%emt 0:18:38]} 23. Qc3 {[%emt 0:06:24]} Nd4 {[%emt 0:00:00]} 24. Bxd4 {[%emt 0:00:31]} Qxd4+ {[%emt 0:00:00]} 25. Qxd4 {[%emt 0:00:30]} Rxf1+ {[%emt 0:00:00]} 26. Kxf1 {[%emt 0:00:06]} exd4 {[%emt 0:00:00]} 27. Ng5 {[%emt 0:00:11]} Bf7 {[%emt 0:00:00]} 28. Bd5 {[%emt 0:01:42]} Bxd5 {[%emt 0:00:00]} 29. cxd5 {[%emt 0:00:04]} Be5 {[%emt 0:01:54]} 30. Ke2 {[%emt 0:01:12]} h6 {[%emt 0:00:16]} 31. Nf3 {[%emt 0:00:41]} Bg7 {[%emt 0:02:16]} 32. Nd2 {[%emt 0:00:26]} Kf7 {[%emt 0:03:23]} 33. Kf3 {[%emt 0:00:30]} Kf6 {[%emt 0:00:00]} 34. Ke4 {[%emt 0:00:14]} Kg5 {[%emt 0:00:00]} 35. h3 {[%emt 0:00:00]} Kf6 {[%emt 0:03:06]} 36. Nf3 {[%emt 0:00:47]} a6 {[%emt 0:00:38]} 37. Nxd4 {[%emt 0:00:16]} Ke7 {[%emt 0:00:13]} 38. Ne6 {[%emt 0:00:38]} 1-0

[Event "Turkish Cup 2024"]
[Site "Denizli"]
[Date "2024.07.31"]
[Round "3"]
[White "Ilgaz, Yusuf Kerem"]
[Black "Seker, Gokhan"]
[Result "1-0"]
[ECO "A84"]
[WhiteElo "2006"]
[BlackElo "2009"]
[Annotator "RC"]
[PlyCount "53"]
[EventDate "2024.08.01"]
[EventType "swiss"]
[EventCountry "TUR"]
[SourceTitle "playchess.com"]
[Source "ChessBase"]
[SourceQuality "1"]
[TimeControl "5400+30"]

1. d4 {[%emt 0:02:00]} d5 {[%emt 0:04:00]} 2. c4 {[%emt 0:00:30]} e6 {[%emt 0:01:30]} 3. Nc3 {[%emt 0:00:30]} c6 {[%emt 0:00:30]} 4. e3 {[%emt 0:03:30]} Bd6 {[%emt 0:00:00]} 5. Bd3 {[%emt 0:00:30]} f5 {[%emt 0:00:00]} 6. Nh3 {[%emt 0:00:30]} Nf6 {[%emt 0:00:30]} 7. O-O {[%emt 0:00:30]} O-O {[%emt 0:00:00]} 8. f3 {[%emt 0:02:30]} Qc7 {[%emt 0:00:00]} 9. Nf4 {[%emt 0:03:30]} g5 {[%emt 0:05:30]} 10. c5 {[%emt 0:00:30]} gxf4 {[%emt 0:03:30]} 11. cxd6 {[%emt 0:00:30]} Qxd6 {[%emt 0:00:30]} 12. exf4 {[%emt 0:00:30]} Nbd7 {[%emt 0:01:30]} 13. a4 {[%emt 0:02:30]} c5 {[%emt 0:03:30]} 14. dxc5 {[%emt 0:07:30]} Nxc5 {[%emt 0:00:30]} 15. Be3 {[%emt 0:11:30]} Nxd3 {[%emt 0:01:30]} 16. Qxd3 {[%emt 0:00:30]} Bd7 {[%emt 0:00:30]} 17. g3 {[%emt 0:02:30]} Rfc8 {[%emt 0:06:30]} 18. Bd4 {[%emt 0:00:30]} Ne8 {[%emt 0:01:30]} 19. Kh1 {[%emt 0:01:30]} Qb4 {[%emt 0:02:30]} 20. Rg1 {[%emt 0:06:30]} Qc4 {[%emt 0:08:30]} 21. Qe3 {[%emt 0:00:30]} Kf7 {[%emt 0:01:30]} 22. g4 {[%emt 0:01:30]} Rc6 {[%emt 0:02:30]} 23. Rae1 {[%emt 0:07:30]} Qb4 {[%emt 0:06:30]} 24. gxf5 {[%emt 0:01:30]} exf5 {[%emt 0:00:30]} 25. Nxd5 {[%emt 0:00:30]} Qd6 {[%emt 0:00:30]} 26. Qe7+ {[%emt 0:00:00]} Qxe7 {[%emt 0:01:30]} 27. Rxe7+ {[%emt 0:00:00]} 1-0

[Event "Turkish Cup 2024"]
[Site "Denizli"]
[Date "2024.07.31"]
[Round "3"]
[White "Sahin, Ata Sarp"]
[Black "Sezis, Doruk"]
[Result "1-0"]
[ECO "B19"]
[WhiteElo "1996"]
[BlackElo "1932"]
[Annotator "RC"]
[PlyCount "171"]
[EventDate "2024.08.01"]
[EventType "swiss"]
[EventCountry "TUR"]
[SourceTitle "playchess.com"]
[Source "ChessBase"]
[SourceQuality "1"]
[TimeControl "5400+30"]

1. e4 {[%emt 0:03:00]} c6 {[%emt 0:01:00]} 2. d4 {[%emt 0:00:30]} d5 {[%emt 0:00:30]} 3. Nc3 {[%emt 0:00:00]} dxe4 {[%emt 0:00:00]} 4. Nxe4 {[%emt 0:00:00]} Bf5 {[%emt 0:00:00]} 5. Ng3 {[%emt 0:00:30]} Bg6 {[%emt 0:00:00]} 6. h4 {[%emt 0:00:30]} h6 {[%emt 0:00:00]} 7. Nf3 {[%emt 0:00:30]} Nd7 {[%emt 0:00:00]} 8. h5 {[%emt 0:00:00]} Bh7 {[%emt 0:00:00]} 9. Bd3 {[%emt 0:00:00]} Bxd3 {[%emt 0:00:30]} 10. Qxd3 {[%emt 0:00:00]} Ngf6 {[%emt 0:00:30]} 11. Bd2 {[%emt 0:00:00]} Qc7 {[%emt 0:02:30]} 12. O-O-O {[%emt 0:01:30]} O-O-O {[%emt 0:00:30]} 13. Ne4 {[%emt 0:00:30]} e6 {[%emt 0:01:30]} 14. g3 {[%emt 0:00:30]} Nxe4 {[%emt 0:00:30]} 15. Qxe4 {[%emt 0:00:30]} Bd6 {[%emt 0:00:30]} 16. Kb1 {[%emt 0:01:30]} Rhe8 {[%emt 0:01:30]} 17. c4 {[%emt 0:03:30]} c5 {[%emt 0:03:30]} 18. Bc3 {[%emt 0:02:30]} Nf6 {[%emt 0:02:30]} 19. Qe2 {[%emt 0:00:00]} cxd4 {[%emt 0:21:30]} 20. Nxd4 {[%emt 0:00:00]} a6 {[%emt 0:00:30]} 21. Nb3 {[%emt 0:03:30]} Qc6 {[%emt 0:02:30]} 22. c5 {[%emt 0:06:30]} Bc7 {[%emt 0:00:30]} 23. Bxf6 {[%emt 0:01:30]} gxf6 {[%emt 0:00:00]} 24. Qe3 {[%emt 0:02:30]} Qg2 {[%emt 0:02:00]} 25. Rc1 {[%emt 0:02:30]} Kb8 {[%emt 0:02:30]} 26. c6 {[%emt 0:01:30]} b6 {[%emt 0:01:30]} 27. Nc5 {[%emt 0:01:30]} Qd5 {[%emt 0:07:30]} 28. Nxa6+ {[%emt 0:01:30]} Kc8 {[%emt 0:00:30]} 29. Nxc7 {[%emt 0:05:30]} Kxc7 {[%emt 0:00:30]} 30. Qxh6 {[%emt 0:00:30]} e5 {[%emt 0:10:30]} 31. Qe3 {[%emt 0:03:30]} Qd3+ {[%emt 0:02:30]} 32. Qxd3 {[%emt 0:00:30]} Rxd3 {[%emt 0:00:00]} 33. h6 {[%emt 0:04:30]} Rh8 {[%emt 0:00:00]} 34. h7 {[%emt 0:01:30]} Rd2 {[%emt 0:00:00]} 35. Rc2 {[%emt 0:02:30]} Rd6 {[%emt 0:00:00]} 36. Rh6 {[%emt 0:00:30]} Rd1+ {[%emt 0:02:30]} 37. Rc1 {[%emt 0:00:30]} Rd2 {[%emt 0:00:00]} 38. Rh2 {[%emt 0:08:30]} e4 {[%emt 0:00:00]} 39. Rc3 {[%emt 0:00:30]} f5 {[%emt 0:01:30]} 40. Re3 {[%emt 0:00:30]} Kxc6 {[%emt 0:01:30]} 41. Kc1 {[%emt 0:00:30]} Rd6 {[%emt 0:00:30]} 42. g4 {[%emt 0:01:30]} fxg4 {[%emt 0:00:30]} 43. Rxe4 {[%emt 0:00:30]} Rg6 {[%emt 0:00:00]} 44. Re7 {[%emt 0:03:30]} Rg7 {[%emt 0:01:00]} 45. Rh6+ {[%emt 0:00:30]} Kc5 {[%emt 0:00:00]} 46. Re5+ {[%emt 0:00:30]} Kd4 {[%emt 0:00:00]} 47. Reh5 {[%emt 0:00:30]} Ke4 {[%emt 0:00:30]} 48. Kd2 {[%emt 0:01:30]} b5 {[%emt 0:06:30]} 49. Ke2 {[%emt 0:01:30]} f5 {[%emt 0:00:30]} 50. Re6+ {[%emt 0:00:30]} Kf4 {[%emt 0:00:30]} 51. Rf6 {[%emt 0:00:00]} Rg5 {[%emt 0:00:30]} 52. Rxg5 {[%emt 0:02:00]} Kxg5 {[%emt 0:00:00]} 53. Rf7 {[%emt 0:00:30]} Kg6 {[%emt 0:00:00]} 54. Rb7 {[%emt 0:00:00]} f4 {[%emt 0:01:30]} 55. Rxb5 {[%emt 0:01:00]} Rxh7 {[%emt 0:00:30]} 56. a4 {[%emt 0:00:30]} Re7+ {[%emt 0:00:30]} 57. Kf1 {[%emt 0:01:30]} Kf6 {[%emt 0:02:30]} 58. a5 {[%emt 0:01:30]} Ke6 {[%emt 0:00:00]} 59. a6 {[%emt 0:01:30]} Kd6 {[%emt 0:02:00]} 60. Rb4 {[%emt 0:00:30]} g3 {[%emt 0:00:30]} 61. Rb6+ {[%emt 0:04:30]} Kd5 {[%emt 0:01:30]} 62. Rb7 {[%emt 0:00:30]} Re6 {[%emt 0:00:30]} 63. Rb5+ {[%emt 0:01:30]} Kc4 {[%emt 0:00:30]} 64. Ra5 {[%emt 0:00:30]} Re8 {[%emt 0:00:00]} 65. a7 {[%emt 0:03:30]} Ra8 {[%emt 0:01:00]} 66. f3 {[%emt 0:00:00]} Kb4 {[%emt 0:02:30]} 67. Ra3 {[%emt 0:00:00]} Kb5 {[%emt 0:00:30]} 68. Kg2 {[%emt 0:00:30]} Kb6 {[%emt 0:00:00]} 69. Ra4 {[%emt 0:00:00]} Rxa7 {[%emt 0:00:00]} 70. Rxf4 {[%emt 0:00:00]} Ra2 {[%emt 0:00:30]} 71. Rc4 {[%emt 0:00:30]} Rxb2+ {[%emt 0:00:30]} 72. Kxg3 {[%emt 0:00:00]} Kb5 {[%emt 0:00:30]} 73. Rc8 {[%emt 0:00:00]} Rd2 {[%emt 0:00:30]} 74. f4 {[%emt 0:00:30]} Kb6 {[%emt 0:00:00]} 75. Kg4 {[%emt 0:00:00]} Kb7 {[%emt 0:00:00]} 76. Rc3 {[%emt 0:00:00]} Rg2+ {[%emt 0:00:00]} 77. Kf5 {[%emt 0:00:00]} Rf2 {[%emt 0:00:00]} 78. Ke5 {[%emt 0:00:00]} Kb6 {[%emt 0:00:30]} 79. f5 {[%emt 0:00:30]} Re2+ {[%emt 0:00:00]} 80. Kd6 {[%emt 0:00:30]} Kb5 {[%emt 0:00:00]} 81. f6 {[%emt 0:00:00]} Rf2 {[%emt 0:00:30]} 82. Ke7 {[%emt 0:00:00]} Re2+ {[%emt 0:00:00]} 83. Kf7 {[%emt 0:00:00]} Kb6 {[%emt 0:00:00]} 84. Kf8 {[%emt 0:00:00]} Rf2 {[%emt 0:00:00]} 85. f7 {[%emt 0:00:30]} Rf1 {[%emt 0:00:00]} 86. Rc4 {[%emt 0:00:00]} 1-0

[Event "Turkish Cup 2024"]
[Site "Denizli"]
[Date "2024.07.31"]
[Round "3"]
[White "Akkaya, Atakan"]
[Black "Yilmaz, Turhan"]
[Result "0-1"]
[ECO "C63"]
[WhiteElo "1971"]
[BlackElo "2015"]
[Annotator "RC"]
[PlyCount "68"]
[EventDate "2024.08.01"]
[EventType "swiss"]
[EventCountry "TUR"]
[SourceTitle "playchess.com"]
[Source "ChessBase"]
[SourceQuality "1"]
[TimeControl "5400+30"]

1. e4 {[%emt 0:01:00]} e5 {[%emt 0:01:00]} 2. Nf3 {[%emt 0:00:30]} Nc6 {[%emt 0:00:00]} 3. Bb5 {[%emt 0:00:00]} f5 {[%emt 0:00:00]} 4. d3 {[%emt 0:00:00]} fxe4 {[%emt 0:00:30]} 5. dxe4 {[%emt 0:00:00]} Nf6 {[%emt 0:00:00]} 6. Qd3 {[%emt 0:00:00]} d6 {[%emt 0:00:00]} 7. Qc4 {[%emt 0:11:30]} Qd7 {[%emt 0:01:30]} 8. c3 {[%emt 0:10:30]} a6 {[%emt 0:00:30]} 9. Qa4 {[%emt 0:00:00]} Nxe4 {[%emt 0:03:30]} 10. Be3 {[%emt 0:01:00]} Nf6 {[%emt 0:14:30]} 11. O-O {[%emt 0:06:30]} Rb8 {[%emt 0:00:30]} 12. Be2 {[%emt 0:01:30]} Nd5 {[%emt 0:08:30]} 13. Nbd2 {[%emt 0:01:30]} Nxe3 {[%emt 0:01:30]} 14. fxe3 {[%emt 0:00:00]} Be7 {[%emt 0:00:00]} 15. Qb3 {[%emt 0:00:00]} Qe6 {[%emt 0:10:00]} 16. Bc4 {[%emt 0:02:30]} Qh6 {[%emt 0:00:00]} 17. Bf7+ {[%emt 0:11:30]} Kd8 {[%emt 0:02:00]} 18. Rad1 {[%emt 0:00:30]} Rf8 {[%emt 0:07:30]} 19. Bd5 {[%emt 0:10:30]} Na5 {[%emt 0:13:30]} 20. Qa3 {[%emt 0:08:30]} b6 {[%emt 0:04:30]} 21. b4 {[%emt 0:02:30]} c6 {[%emt 0:03:30]} 22. Bc4 {[%emt 0:07:30]} Nxc4 {[%emt 0:03:30]} 23. Nxc4 {[%emt 0:00:30]} Kc7 {[%emt 0:01:30]} 24. b5 {[%emt 0:06:00]} Qe6 {[%emt 0:00:30]} 25. Ncd2 {[%emt 0:07:05]} axb5 {[%emt 0:00:30]} 26. e4 {[%emt 0:00:24]} Bb7 {[%emt 0:01:30]} 27. Ra1 {[%emt 0:01:17]} Ra8 {[%emt 0:00:30]} 28. Qb2 {[%emt 0:00:26]} Ra4 {[%emt 0:00:30]} 29. Rfb1 {[%emt 0:00:10]} Rfa8 {[%emt 0:01:30]} 30. c4 {[%emt 0:03:10]} g5 {[%emt 0:00:30]} 31. a3 {[%emt 0:02:05]} g4 {[%emt 0:00:30]} 32. Ne1 {[%emt 0:01:27]} Bg5 {[%emt 0:00:30]} 33. cxb5 {[%emt 0:00:03]} Be3+ {[%emt 0:02:30]} 34. Kh1 {[%emt 0:00:01]} Bd4 {[%emt 0:00:00]} 0-1